bitfinex/quotes_SOLUSD_20260115
["timestamp","ask_amount","ask_price","bid_price","bid_amount"]
[1768481546851,0.64708195,144.72,144.69,2.56606501]
[1768481547755,0.1,144.72,144.69,0.06032097]
[1768481548048,0.64708195,144.72,144.68,19.5749716]
[1768481548660,0.64708195,144.72,144.68,22.07772628]
[1768481549858,0.64708195,144.72,144.68,12.6]
[1768481549859,0.54708195,144.71,144.68,12.6]
[1768481550283,0.54708195,144.71,144.68,22.07786547]
[1768481550436,0.64708195,144.72,144.69,2.63525145]
[1768481550637,0.64708195,144.72,144.7,2.56606501]
[1768481550839,0.64708195,144.72,144.7,2.53606502]
[1768481551338,0.64708195,144.72,144.69,2.63525145]
[1768481552037,0.1,144.72,144.7,0.07492833]
[1768481552336,0.02507167,144.72,144.7,2.64099334]
[1768481552537,0.78924352,144.74,144.71,2.56606501]
[1768481553552,0.78924352,144.74,144.71,2.53606501]
[1768481553752,0.78924352,144.74,144.71,2.56606501]
[1768481554267,0.54708195,144.73,144.7,2.56606501]
[1768481554873,0.54708195,144.73,144.71,2.56606501]
[1768481555049,0.54708195,144.73,144.7,6.910725]
[1768481555248,0.54708195,144.73,144.71,2.56606501]
[1768481555449,7.69832777,144.74,144.71,2.56606501]
[1768481555862,0.64708195,144.74,144.72,2.56606501]
[1768481556059,0.64708195,144.74,144.72,2.53606501]
[1768481556981,0.1,144.74,144.71,9.47638639]
[1768481558986,0.64708195,144.74,144.71,6.91032138]
[1768481559270,0.64708195,144.74,144.71,9.47638639]
[1768481564481,0.64708195,144.74,144.71,6.91032138]
[1768481564686,0.64708195,144.74,144.71,22.07638639]
[1768481565478,0.64708195,144.74,144.71,2.56606501]
[1768481565655,0.64708195,144.74,144.71,0.03447759]
[1768481566684,0.64708195,144.74,144.7,22.11368689]
[1768481568878,0.64708195,144.74,144.7,19.54762188]
[1768481569187,0.64708195,144.74,144.7,22.11368689]
[1768481569975,0.64708195,144.74,144.7,19.54762188]
[1768481570175,0.64708195,144.74,144.71,2.56606501]
[1768481570390,0.64708195,144.74,144.7,19.54762188]
[1768481570558,0.64708195,144.74,144.71,2.56606501]
[1768481570980,0.64708195,144.74,144.7,19.54762188]
[1768481571187,0.64708195,144.74,144.7,22.07675492]
[1768481571487,0.64708195,144.74,144.71,9.52741621]
[1768481572678,0.64708195,144.74,144.7,19.56398798]
[1768481572891,0.64708195,144.74,144.7,22.13005299]
[1768481574466,0.04442109,144.74,144.72,2.56606501]
[1768481574672,0.04442109,144.74,144.7,36.78777187]
[1768481574883,0.04442109,144.74,144.72,2.56606501]
[1768481575990,0.04442109,144.74,144.7,19.51064679]
[1768481575991,0.62671944,144.74,144.7,19.51064679]
[1768481576173,0.62671944,144.74,144.71,2.56606501]
[1768481576373,0.62671944,144.74,144.7,22.0767118]
[1768481577366,0.62671944,144.74,144.71,9.47641965]
[1768481578370,0.62671944,144.74,144.72,9.47590624]
[1768481578588,0.62671944,144.74,144.72,6.90984123]
[1768481578899,0.62671944,144.74,144.72,9.47590624]
[1768481579696,0.62671944,144.74,144.72,2.56606501]
[1768481580193,0.62671944,144.74,144.73,2.56606501]
[1768481580503,0.1,144.75,144.73,2.53606501]
[1768481581380,7.14981474,144.77,144.74,3.13787135]
[1768481581583,7.73211309,144.77,144.74,3.10787135]
[1768481581890,0.58229835,144.76,144.72,19.50983018]
[1768481582281,0.58229835,144.76,144.73,2.56606501]
[1768481583499,0.58229835,144.76,144.73,3.039071]
[1768481583881,0.58229835,144.76,144.73,9.94847063]
[1768481584790,7.73211309,144.77,144.73,9.94847063]
[1768481584991,0.1,144.77,144.74,3.04284315]
[1768481585595,0.1,144.77,144.76,0.47677814]
[1768481585784,0.1,144.77,144.75,3.04354715]
[1768481586105,0.58229835,144.76,144.72,7.38736534]
[1768481586307,0.58229835,144.76,144.73,12.6]
[1768481586686,0.58229835,144.76,144.73,15.16606501]
[1768481586985,0.58229835,144.76,144.73,15.6441799]
[1768481587896,7.5898223,144.77,144.74,0.47874037]
[1768481588094,7.5898223,144.77,144.74,3.01480538]
[1768481588714,7.00752395,144.77,144.74,3.01480538]
[1768481589291,0.1,144.77,144.74,3.01480538]
[1768481589491,0.1,144.77,144.75,2.56606501]
[1768481589699,0.68229835,144.77,144.74,0.44874037]
[1768481590092,0.68229835,144.77,144.74,3.01480538]
[1768481592115,0.68229835,144.77,144.74,0.44874037]
[1768481592315,7.58991186,144.77,144.74,3.01480538]
[1768481598127,0.1,144.77,144.74,9.92952367]
[1768481598310,0.1,144.78,144.76,3.02091673]
[1768481598515,0.1,144.78,144.76,0.45485172]
[1768481598826,0.1,144.8,144.77,3.02091673]
[1768481599009,0.1,144.8,144.77,2.99091673]
[1768481601030,0.1,144.8,144.78,0.32719844]
[1768481603950,0.1,144.8,144.78,12.92719844]
[1768481605526,6.90515624,144.82,144.79,0.23035944]
[1768481605727,7.51217922,144.82,144.79,0.20035944]
[1768481606028,0.60702298,144.79,144.78,12.6]
[1768481606326,0.60702298,144.79,144.75,4.00431668]
[1768481606630,0.60702298,144.79,144.72,5.34408856]
[1768481606631,0.60702298,144.77,144.74,16.60431668]
[1768481606816,0.54702299,144.77,144.74,16.86607827]
[1768481608422,0.14216157,144.81,144.77,0.26245061]
[1768481608619,0.14216157,144.81,144.77,12.86245061]
[1768481608931,0.60702298,144.8,144.77,12.6]
[1768481609326,0.60702298,144.82,144.78,0.26313172]
[1768481609530,0.60702298,144.82,144.78,4.2674484]
[1768481609829,0.60702298,144.82,144.79,0.26380501]
[1768481610230,0.60702298,144.82,144.78,0.26380501]
[1768481610440,0.60702298,144.82,144.78,4.26812169]
[1768481610637,7.51219485,144.82,144.78,0.26380501]
[1768481610827,0.60702298,144.81,144.77,23.77607512]
[1768481611332,0.60702298,144.81,144.78,0.26448417]
[1768481611727,0.60702298,144.81,144.77,23.51159095]
[1768481613229,0.60702298,144.81,144.77,19.50727427]
[1768481615041,0.60702298,144.81,144.77,23.51159095]
[1768481616931,0.60702298,144.81,144.78,0.26763027]
[1768481617837,0.60702298,144.81,144.78,4.27194695]
[1768481619344,7.51219485,144.82,144.78,4.27194695]
[1768481619641,11.51617625,144.83,144.79,0.26858084]
[1768481620147,0.60702298,144.82,144.78,7.17607506]
[1768481620351,0.60702298,144.82,144.78,11.18039174]
[1768481620544,0.60702298,144.81,144.77,23.51163681]
[1768481620752,0.60702298,144.81,144.77,23.78068476]
[1768481621338,0.60702298,144.81,144.78,16.60431668]
[1768481621738,0.60702298,144.81,144.78,12.6]
[1768481622148,0.60702298,144.81,144.78,16.60431668]
[1768481623538,0.60702298,144.8,144.77,4.00431668]
[1768481623849,0.60702298,144.8,144.78,12.6]
[1768481625947,0.60702298,144.8,144.79,4.00431668]
[1768481626127,7.51227114,144.82,144.79,4.00431668]
[1768481627549,0.60702298,144.81,144.78,12.87174006]
[1768481627845,0.60702298,144.81,144.78,16.87605674]
[1768481628350,0.60702298,144.81,144.79,4.00431668]
[1768481628552,6.90524816,144.82,144.79,4.00431668]
[1768481628729,6.90524816,144.82,144.8,0.27301774]
[1768481628929,7.51227114,144.82,144.79,4.00431668]
[1768481629226,0.60702298,144.82,144.79,4.00431668]
[1768481629430,0.60702298,144.82,144.79,4.27733442]
[1768481630753,7.49506311,144.83,144.79,4.27733442]
[1768481631048,0.59035754,144.82,144.79,4.27733442]
[1768481631250,0.59035754,144.82,144.79,0.27301774]
[1768481631552,0.59035754,144.82,144.79,4.27733442]
[1768481632529,7.49506311,144.83,144.8,4.00431668]
[1768481633232,0.59035754,144.83,144.79,7.18157153]
[1768481633440,0.59035754,144.83,144.81,4.00431668]
[1768481633754,0.71773334,144.84,144.81,4.00431668]
[1768481634057,0.59035754,144.83,144.79,7.18196432]
[1768481634254,0.59035754,144.83,144.8,4.00431668]
[1768481634457,0.59035754,144.83,144.81,4.00431668]
[1768481634956,0.53035755,144.83,144.79,7.18196432]
[1768481635252,0.53035755,144.83,144.81,4.00431668]
[1768481636052,0.53035755,144.83,144.8,0.33583228]
[1768481636256,0.53035755,144.83,144.81,4.00431668]
[1768481636461,0.53035755,144.83,144.8,0.33583228]
[1768481636662,0.53035755,144.83,144.8,11.2462028]
[1768481636859,0.71773334,144.84,144.81,4.00431668]
[1768481637041,0.71773334,144.84,144.81,4.34091218]
[1768481637453,0.71773334,144.84,144.8,6.90605384]
[1768481637454,0.71773334,144.84,144.8,7.24264934]
[1768481637638,0.71773334,144.84,144.81,4.00431668]
[1768481638351,0.71773334,144.84,144.81,4.34128724]
[1768481638852,0.71773334,144.84,144.81,4.00431668]
[1768481639762,0.71773334,144.84,144.8,7.24339514]
[1768481639962,0.71773334,144.84,144.78,29.86668299]
[1768481639963,0.59035754,144.83,144.79,12.6]
[1768481640141,0.59035754,144.83,144.79,16.60431668]
[1768481640340,0.59035754,144.83,144.81,4.00431668]
[1768481640539,7.62198709,144.84,144.81,4.00431668]
[1768481640731,7.03162955,144.84,144.8,0.33770779]
[1768481640937,0.59035754,144.83,144.81,4.00431668]
[1768481641546,0.71773334,144.84,144.81,4.34252971]
[1768481641859,0.71773334,144.84,144.81,7.24346881]
[1768481642050,0.71773334,144.84,144.82,4.00431668]
[1768481643361,0.71773334,144.84,144.82,16.60431668]
[1768481644941,0.1273758,144.84,144.82,12.6]
[1768481645167,0.1273758,144.84,144.83,4.00431668]
[1768481645373,0.59035754,144.85,144.83,4.00431668]
[1768481645663,0.59035754,144.85,144.82,19.84514838]
[1768481645846,0.59035754,144.85,144.83,4.00431668]
[1768481646160,0.69035754,144.86,144.83,4.00431668]
[1768481646560,0.69035754,144.86,144.83,0.34065349]
[1768481646764,0.69035754,144.86,144.83,4.00431668]
[1768481648268,0.59035754,144.87,144.83,6.90441838]
[1768481648772,0.59035754,144.87,144.82,10.90913087]
[1768481648773,0.59035754,144.85,144.82,10.90913087]
[1768481648944,0.53035755,144.85,144.82,10.90913087]
[1768481649143,0.53035755,144.85,144.83,6.90454433]
[1768481649347,0.1,144.89,144.85,0.6122552]
[1768481649565,0.1,144.89,144.86,4.00431668]
[1768481650150,0.1,144.89,144.87,4.00431668]
[1768481650349,16.3480522,144.9,144.88,0.6122552]
[1768481650871,16.3480522,144.9,144.88,12.6]
[1768481651457,16.3480522,144.9,144.88,23.50637497]
[1768481651659,10.2604469,144.9,144.88,23.50637497]
[1768481651861,10.2604469,144.9,144.88,16.60431668]
[1768481652169,10.2604469,144.9,144.88,23.50657729]
[1768481652363,10.85080444,144.9,144.88,12.6]
[1768481652749,10.85080444,144.9,144.87,10.90688732]
[1768481652970,10.85080444,144.9,144.87,23.50688732]
[1768481653173,10.85080444,144.9,144.87,19.50257064]
[1768481653366,10.85080444,144.9,144.87,23.50688732]
[1768481653874,10.85080444,144.9,144.88,6.90225625]
[1768481655172,10.85080444,144.9,144.86,17.25725792]
[1768481655173,10.85080444,144.9,144.86,4.61657188]
[1768481656574,10.85080444,144.9,144.86,11.51973483]
[1768481656772,10.85080444,144.9,144.86,7.51541815]
[1768481656976,10.85080444,144.9,144.86,11.51973483]
[1768481657867,10.85080444,144.9,144.87,4.00431668]
[1768481658069,10.85080444,144.9,144.86,7.51541815]
[1768481658482,10.85080444,144.9,144.86,11.51973483]
[1768481658679,10.85080444,144.9,144.86,7.51541815]
[1768481658985,10.85080444,144.9,144.86,11.51973483]
[1768481659982,10.2604469,144.9,144.87,4.61657188]
[1768481660385,10.85080444,144.9,144.87,0.6122552]
[1768481660592,10.85080444,144.9,144.87,4.61657188]
[1768481660968,10.85080444,144.9,144.87,11.5192914]
[1768481662880,10.85080444,144.9,144.87,7.51497472]
[1768481663083,10.85080444,144.9,144.87,11.5192914]
[1768481664499,10.85080444,144.9,144.87,0.6122552]
[1768481664893,10.85080444,144.9,144.87,4.61657188]
[1768481665584,10.85080444,144.9,144.87,11.51930926]
[1768481665780,10.85080444,144.9,144.87,7.51499258]
[1768481667074,10.85080444,144.9,144.87,11.51930926]
[1768481667395,10.85080444,144.9,144.87,10.07457268]
[1768481667592,0.56134703,144.89,144.86,0.59513932]
[1768481667780,0.56134703,144.89,144.86,3.15471942]
[1768481667978,0.56134703,144.89,144.86,0.59513932]
[1768481668402,0.56134703,144.89,144.86,3.15471942]
[1768481669092,0.56134703,144.89,144.86,7.49830187]
[1768481669402,0.56134703,144.89,144.86,10.05788197]
[1768481669703,0.56134703,144.89,144.86,7.49830187]
[1768481669876,0.56134703,144.89,144.86,10.05788197]
[1768481670388,0.56134703,144.89,144.86,12.58]
[1768481670776,0.56134703,144.87,144.84,12.58]
[1768481671380,0.56134703,144.86,144.84,12.58]
[1768481671580,0.56134703,144.86,144.84,6.90415176]
[1768481671800,0.56134703,144.87,144.83,22.63916417]
[1768481672181,0.56134703,144.87,144.83,20.07958407]
[1768481672376,0.56134703,144.86,144.82,7.50006936]
[1768481672684,0.56134703,144.85,144.82,12.58]
[1768481673183,0.56134703,144.85,144.82,19.48512156]
[1768481675802,0.56134703,144.85,144.82,12.58]
[1768481676187,0.56134703,144.85,144.82,19.48509809]
[1768481676986,0.56134703,144.85,144.82,12.58]
[1768481676987,0.56134703,144.84,144.82,12.58]
[1768481677411,0.50134703,144.84,144.82,12.58]
[1768481678613,9.4630083,144.86,144.82,13.17513932]
[1768481679410,0.56134703,144.85,144.82,12.58]
[1768481680394,7.46505292,144.85,144.81,10.0602119]
[1768481680618,10.0243582,144.86,144.82,0.59513932]
[1768481681118,0.56134703,144.85,144.82,0.59513932]
[1768481682314,0.56134703,144.84,144.81,20.1006318]
[1768481683616,0.56134703,144.84,144.81,0.59513932]
[1768481683917,0.56134703,144.84,144.81,13.19513932]
[1768481684119,0.56134703,144.84,144.81,20.10068951]
[1768481685817,9.46327361,144.85,144.82,0.59513932]
[1768481685818,0.56134703,144.85,144.82,0.59513932]
[1768481688020,0.56134703,144.85,144.82,10.05981955]
[1768481688600,0.56134703,144.85,144.82,7.50023945]
[1768481689020,3.12092713,144.89,144.84,0.59513932]
[1768481689328,0.56134703,144.89,144.86,0.59513932]
[1768481690315,17.72325734,144.9,144.86,0.59513932]
[1768481696439,20.28283744,144.9,144.86,0.59513932]
[1768481696836,17.72325734,144.9,144.86,0.59513932]
[1768481697242,20.28283744,144.9,144.86,0.59513932]
[1768481697740,17.72325734,144.9,144.86,0.59513932]
[1768481699119,17.16191031,144.9,144.86,0.59513932]
[1768481699318,17.69318508,144.9,144.86,0.59513932]
[1768481700444,0.53127477,144.88,144.85,10.02201272]
[1768481700625,7.43314705,144.89,144.85,9.46295462]
[1768481700944,7.43314705,144.89,144.86,0.5590581]
[1768481701644,0.53127477,144.86,144.83,0.5590581]
[1768481701850,24.15634118,144.89,144.84,0.5590581]
[1768481701851,2.5595801,144.88,144.84,0.5590581]
[1768481702738,0.14216157,144.88,144.84,3.1186382]
[1768481702937,7.04478407,144.88,144.84,3.1186382]
[1768481703143,7.04413472,144.89,144.86,0.5590581]
[1768481703341,6.90197315,144.89,144.86,0.5590581]
[1768481703634,17.16195391,144.9,144.87,0.5590581]
[1768481703843,17.69322868,144.9,144.87,0.5590581]
[1768481706737,0.53127477,144.89,144.86,0.5590581]
[1768481707855,17.69322868,144.9,144.86,3.1186382]
[1768481708154,17.69322868,144.9,144.86,0.5590581]
[1768481708754,17.69322868,144.9,144.86,3.1186382]
[1768481709751,17.16195391,144.9,144.87,0.5590581]
[1768481709952,17.69322868,144.9,144.87,0.5590581]
[1768481710531,20.25280878,144.9,144.87,0.5590581]
[1768481710745,17.69322868,144.9,144.87,0.5590581]
[1768481710945,20.25280878,144.9,144.87,0.5590581]
[1768481711654,0.53127477,144.88,144.85,0.5590581]
[1768481711953,0.53127477,144.86,144.83,0.5590581]
[1768481712954,7.43460332,144.86,144.83,0.5590581]
[1768481713750,0.53127477,144.85,144.82,0.5590581]
[1768481713933,0.47127477,144.85,144.82,0.5590581]
[1768481715258,2.70174167,144.84,144.8,0.5590581]
[1768481715758,2.5595801,144.84,144.8,0.5590581]
[1768481715961,0.53127477,144.83,144.8,0.5590581]
[1768481716256,3.09085487,144.83,144.8,0.5590581]
[1768481716463,3.04084912,144.83,144.8,0.5590581]
[1768481717262,9.94556377,144.83,144.8,0.5590581]
[1768481717448,7.38598367,144.83,144.8,0.5590581]
[1768481717646,9.94556377,144.83,144.8,0.5590581]
[1768481720465,0.53127477,144.82,144.79,12.58]
[1768481720773,3.09085487,144.82,144.79,13.08507512]
[1768481721353,0.50946122,144.81,144.79,12.58]
[1768481721562,0.44946119,144.81,144.79,12.58]
[1768481722944,0.33945201,144.81,144.79,12.58]
[1768481724854,0.39964611,144.83,144.79,13.09741563]
[1768481725077,2.95922621,144.82,144.79,13.09741563]
[1768481725386,2.95922621,144.82,144.78,7.42443471]
[1768481725887,9.86450994,144.82,144.78,7.42443471]
[1768481727865,2.5595801,144.81,144.78,0.51741563]
[1768481728351,2.5595801,144.8,144.78,0.51741563]
[1768481728674,7.30146594,144.82,144.78,0.51741563]
[1768481729084,9.86104604,144.82,144.78,0.51741563]
[1768481729573,11.3061151,144.82,144.78,0.51741563]
[1768481730480,10.90951355,144.83,144.79,0.51741563]
[1768481731778,11.30234986,144.83,144.79,0.51741563]
[1768481732163,10.90989586,144.82,144.79,0.51741563]
[1768481732676,11.30164239,144.82,144.79,0.51741563]
[1768481734376,10.90989586,144.82,144.79,0.51741563]
[1768481735480,4.39320088,144.81,144.78,0.51741563]
[1768481735860,4.39320088,144.81,144.77,13.11741563]
[1768481736061,4.39320088,144.81,144.77,12.6]
[1768481736262,6.90568617,144.81,144.78,0.51741563]
[1768481736472,4.00464916,144.79,144.74,0.51741563]
[1768481736671,4.00464916,144.79,144.75,0.51741563]
[1768481737577,4.3911317,144.79,144.75,0.51741563]
[1768481738092,0.38648254,144.79,144.75,0.51741563]
[1768481739168,7.29311217,144.79,144.75,0.51741563]
[1768481743495,11.29776133,144.79,144.75,0.51741563]
[1768481744190,7.29311217,144.79,144.75,0.51741563]
[1768481744570,11.29776133,144.79,144.75,0.51741563]
[1768481744869,7.29311217,144.79,144.75,0.51741563]
[1768481745087,4.38331691,144.78,144.74,13.11741563]
[1768481745290,0.37866775,144.77,144.73,17.12206479]
[1768481745680,7.28621853,144.77,144.73,17.12206479]
[1768481746082,0.37866775,144.77,144.74,0.51741563]
[1768481746884,7.28618051,144.77,144.74,0.51741563]
[1768481748894,6.90751276,144.77,144.74,0.51741563]
[1768481751587,6.90751276,144.77,144.74,13.11741563]
[1768481751894,6.90751276,144.77,144.74,0.51741563]
[1768481752103,6.90751276,144.77,144.74,13.11741563]
[1768481753095,6.90751276,144.77,144.75,0.49995039]
[1768481753296,11.28257981,144.78,144.75,0.49995039]
[1768481753991,7.27791143,144.78,144.75,0.49995039]
[1768481754192,4.3745113,144.79,144.75,0.49995039]
[1768481755289,6.9065594,144.79,144.76,0.49995039]
[1768481755795,7.27559564,144.79,144.76,0.49995039]
[1768481755995,7.27559564,144.79,144.76,0.4699504]
[1768481757108,11.2802448,144.79,144.76,0.4699504]
[1768481759500,10.91120856,144.79,144.76,0.4699504]
[1768481760511,11.30625543,144.79,144.76,0.4699504]
[1768481760896,6.9065594,144.79,144.76,0.4699504]
[1768481761095,6.9056062,144.81,144.78,0.49995039]
[1768481761305,0.43,144.82,144.79,4.00464916]
[1768481761805,0.43,144.82,144.78,10.91168051]
[1768481761985,0.43,144.82,144.78,6.90703135]
[1768481762185,0.85351453,144.82,144.78,10.91168051]
[1768481762386,4.42816369,144.81,144.78,6.90703135]
[1768481762684,4.43464916,144.82,144.78,6.90703135]
[1768481763292,4.8574107,144.82,144.79,0.49995039]
[1768481763502,0.43,144.82,144.79,7.37637916]
[1768481763710,0.43,144.82,144.79,10.88107791]
[1768481765090,0.43,144.82,144.8,4.00464916]
[1768481765388,0.43,144.82,144.8,0.49995039]
[1768481765710,0.43,144.82,144.81,0.49995039]
[1768481765913,0.43,144.82,144.8,0.49995039]
[1768481768414,0.43,144.82,144.8,7.40600393]
[1768481769415,0.43,144.82,144.81,0.49995039]
[1768481769593,0.43,144.82,144.81,0.4699504]
[1768481774913,0.43,144.82,144.8,17.10459955]
[1768481777054,0.43,144.82,144.81,0.49995039]
[1768481777725,0.4730841,144.84,144.81,4.50459955]
[1768481778925,7.42873078,144.85,144.82,4.00464916]
[1768481779136,7.42833737,144.86,144.83,0.49995039]
[1768481779340,0.52493226,144.85,144.82,4.00464916]
[1768481780640,7.42872494,144.85,144.82,4.00464916]
[1768481780827,7.42872494,144.85,144.81,6.90556163]
[1768481781035,0.48028278,144.84,144.8,19.50584701]
[1768481781339,0.48028278,144.84,144.8,24.01105296]
[1768481781920,0.48028278,144.84,144.8,0.50055679]
[1768481782245,0.48028278,144.83,144.8,4.50520595]
[1768481783654,0.48028278,144.83,144.8,0.50055679]
[1768481786247,0.48028278,144.83,144.8,4.50520595]
[1768481786634,0.48028278,144.83,144.8,11.4112687]
[1768481788649,7.41541196,144.84,144.81,0.5076241]
[1768481789053,0.51098416,144.84,144.81,0.5076241]
[1768481789349,0.51098416,144.85,144.82,0.5076241]
[1768481789541,0.51098416,144.85,144.82,0.47762411]
[1768481789950,0.51098416,144.85,144.81,9.46717395]
[1768481790249,0.51098416,144.85,144.81,6.9054915]
[1768481790432,0.51098416,144.84,144.8,9.46755527]
[1768481791538,0.51098416,144.84,144.8,9.97517937]
[1768481793960,3.07266661,144.84,144.8,7.41349692]
[1768481794121,0.51098416,144.83,144.8,20.01349692]
[1768481794327,0.51098416,144.83,144.79,6.90621468]
[1768481794523,0.51098416,144.82,144.79,12.6]
[1768481794742,0.51098416,144.81,144.79,12.6]
[1768481796051,0.51098416,144.8,144.77,7.41509768]
[1768481796255,0.51098416,144.81,144.78,0.5076241]
[1768481800154,7.41625407,144.82,144.78,0.5076241]
[1768481800337,9.97793652,144.82,144.78,0.5076241]
[1768481801455,2.56168245,144.81,144.78,0.5076241]
[1768481802254,3.07266661,144.81,144.78,0.5076241]
[1768481802758,3.0126666,144.81,144.78,0.5076241]
[1768481803359,9.91848966,144.81,144.78,0.5076241]
[1768481804750,3.07266661,144.8,144.77,13.1076241]
[1768481805054,0.51098416,144.8,144.77,13.1076241]
[1768481805256,0.45098416,144.8,144.77,13.1076241]
[1768481805932,6.90582306,144.81,144.78,0.5076241]
[1768481806356,9.46750551,144.81,144.78,0.5076241]
[1768481807356,0.51098416,144.8,144.78,0.5076241]
[1768481809056,0.51098416,144.8,144.77,12.6]
[1768481809357,0.40097828,144.8,144.77,13.1076241]
[1768481810153,9.46750551,144.81,144.78,0.5076241]
[1768481811455,9.94327466,144.81,144.78,0.5076241]
[1768481811975,0.47576915,144.8,144.77,19.97991634]
[1768481812182,0.47576915,144.8,144.77,13.07242495]
[1768481814167,0.47576915,144.8,144.78,0.47242495]
[1768481816373,3.0374516,144.8,144.77,13.07242495]
[1768481817272,0.47576915,144.79,144.77,12.6]
[1768481817456,3.0374516,144.79,144.76,0.47242495]
[1768481821685,0.47576915,144.79,144.76,0.47242495]
[1768481821861,3.0374516,144.79,144.76,7.38040417]
[1768481822949,9.46777024,144.8,144.76,6.90797922]
[1768481823156,9.94353939,144.8,144.77,0.47242495]
[1768481823555,0.47576915,144.8,144.77,0.47242495]
[1768481824779,0.41576915,144.8,144.77,0.47242495]
[1768481831968,0.47576915,144.79,144.76,19.98040417]
[1768481833866,0.47576915,144.79,144.76,7.38040417]
[1768481836485,0.47576915,144.79,144.77,0.47242495]
[1768481837385,0.41576912,144.79,144.77,0.47242495]
[1768481839290,2.56168245,144.81,144.77,0.47242495]
[1768481839492,0.47576915,144.8,144.77,0.47242495]
[1768481840875,0.50786673,144.78,144.72,17.74761967]
[1768481841078,0.50786673,144.78,144.74,6.90855148]
[1768481841386,0.50786673,144.78,144.74,6.90894016]
[1768481841563,3.06954918,144.78,144.74,6.90894016]
[1768481841766,0.50786673,144.77,144.74,6.90894016]
[1768481843282,0.50786673,144.77,144.74,7.38230391]
[1768481844065,0.4985056,144.78,144.75,0.50604226]
[1768481844271,3.01018167,144.78,144.75,0.50604226]
[1768481844670,0.44849922,144.78,144.75,0.50604226]
[1768481844875,3.01018167,144.78,144.75,7.41449741]
[1768481845595,0.44849922,144.78,144.75,7.41449741]
[1768481848395,0.44849922,144.78,144.75,0.50604226]
[1768481848596,3.01018167,144.78,144.75,0.50604226]
[1768481848778,0.44849922,144.78,144.75,0.50604226]
[1768481849305,0.44849922,144.78,144.75,7.41447554]
[1768481849474,6.90677349,144.79,144.76,0.50604226]
[1768481849679,7.40527909,144.79,144.76,0.50604226]
[1768481850400,4.50469368,144.8,144.76,0.50604226]
[1768481850576,0.4985056,144.81,144.77,0.50604226]
[1768481850895,11.41003959,144.82,144.77,0.50604226]
[1768481851080,7.40385151,144.82,144.78,0.50604226]
[1768481851279,11.41003959,144.82,144.78,0.50604226]
[1768481852068,11.41003959,144.82,144.79,0.50604226]
[1768481852469,7.40267571,144.84,144.79,0.50604226]
[1768481852669,7.40267571,144.84,144.8,0.50604226]
[1768481852970,11.40886379,144.84,144.8,0.50604226]
[1768481853179,0.4985056,144.83,144.8,0.50604226]
[1768481853567,11.40886379,144.84,144.8,0.50604226]
[1768481853772,0.4985056,144.83,144.8,0.50604226]
[1768481854198,11.40886379,144.84,144.8,0.50604226]
[1768481855397,11.98067226,144.85,144.8,6.90604086]
[1768481855593,11.98067226,144.85,144.81,0.50604226]
[1768481856096,0.4985056,144.84,144.81,0.50604226]
[1768481856989,11.98067226,144.85,144.81,0.50604226]
[1768481857293,0.4985056,144.84,144.81,0.50604226]
[1768481860003,11.83851069,144.85,144.81,0.50604226]
[1768481860204,0.43,144.85,144.82,0.50604226]
[1768481860805,0.9285056,144.85,144.82,0.50604226]
[1768481861404,6.9033469,144.86,144.84,0.50604226]
[1768481862220,7.4018525,144.86,144.84,0.50604226]
[1768481863117,7.4018525,144.86,144.81,10.91158794]
[1768481863118,0.4985056,144.85,144.81,0.50604226]
[1768481863288,7.40221048,144.85,144.82,0.50604226]
[1768481866910,0.4985056,144.84,144.81,0.50604226]
[1768481867116,4.00618808,144.84,144.8,7.41191736]
[1768481867408,10.91042366,144.84,144.8,7.41191736]
[1768481867622,10.91042366,144.84,144.81,0.50604226]
[1768481867986,10.91006563,144.85,144.81,0.50604226]
[1768481869107,0.4985056,144.84,144.81,0.50604226]
[1768481869321,11.40857123,144.85,144.81,0.50604226]
[1768481870014,7.40238315,144.85,144.81,0.50604226]
[1768481870323,0.4985056,144.84,144.81,0.50604226]
[1768481871414,11.38433015,144.85,144.81,0.50604226]
[1768481871603,7.37814207,144.85,144.81,0.50604226]
[1768481871791,7.37814207,144.85,144.8,10.91206318]
[1768481871792,4.00618808,144.83,144.79,0.49042747]
[1768481871993,0.47426452,144.82,144.79,0.49042747]
[1768481873705,0.47426452,144.82,144.79,7.39697554]
[1768481873904,0.44428577,144.82,144.79,7.39697554]
[1768481874416,6.90474121,144.83,144.8,0.49042747]
[1768481877416,7.31900573,144.83,144.8,0.49042747]
[1768481880227,0.47426452,144.82,144.77,0.49042747]
[1768481880427,0.47426452,144.81,144.77,0.49042747]
[1768481881324,0.41426452,144.81,144.77,0.49042747]
[1768481881516,7.3201245,144.81,144.78,0.49042747]
[1768481883023,6.90530747,144.82,144.79,0.49042747]
[1768481883331,4.4804526,144.84,144.79,0.49042747]
[1768481883637,11.38483704,144.84,144.8,0.49042747]
[1768481884704,11.38483704,144.84,144.8,13.09042747]
[1768481885126,11.38483704,144.84,144.81,0.49042747]
[1768481885825,7.37864896,144.84,144.81,0.49042747]
[1768481886033,6.90438444,144.84,144.81,0.49042747]
[1768481886923,17.25991153,144.85,144.81,0.49042747]